bitfinex-derivatives/quotes_BTCF0:USTF0_20250411
["timestamp","ask_amount","ask_price","bid_price","bid_amount"]
[1744354409733,0.1233275,81140.0,81138.0,0.1233303]
[1744354410328,0.1233275,81140.0,81134.0,0.3608]
[1744354410635,0.1233275,81140.0,81135.0,0.1233346]
[1744354412028,0.1233275,81140.0,81136.0,0.123333]
[1744354412634,0.1233275,81140.0,81134.0,0.4224683]
[1744354412635,0.23408047,81140.0,81134.0,0.4841361]
[1744354412832,0.23408047,81140.0,81135.0,0.1233345]
[1744354413025,0.23408047,81140.0,81136.0,0.123333]
[1744354413828,0.23408047,81140.0,81132.0,0.3608]
[1744354414026,0.23408047,81140.0,81136.0,0.1233327]
[1744354415133,0.23408047,81140.0,81134.0,0.1850041]
[1744354415340,0.23408047,81140.0,81135.0,0.1233348]
[1744354415540,0.23408047,81140.0,81134.0,0.1233366]
[1744354416035,0.23408047,81140.0,81135.0,0.1233341]
[1744354416230,0.23408047,81140.0,81136.0,0.1233334]
[1744354416437,0.1233275,81140.0,81136.0,0.1233334]
[1744354416935,0.1857275,81140.0,81136.0,0.1233334]
[1744354417330,0.1857275,81140.0,81137.0,0.1233319]
[1744354418837,0.1857275,81140.0,81137.0,0.0616659]
[1744354419036,0.1857675,81140.0,81138.0,0.0621]
[1744354419640,0.1857675,81140.0,81139.0,0.06459298]
[1744354419929,0.1857675,81140.0,81139.0,0.18792208]
[1744354420138,0.1548675,81140.0,81139.0,0.18792208]
[1744354420836,0.03154,81140.0,81139.0,0.54872208]
[1744354421037,0.0315,81140.0,81139.0,0.54872208]
[1744354421538,0.03154,81140.0,81139.0,0.54872208]
[1744354422138,0.1548275,81140.0,81139.0,0.48462208]
[1744354422328,0.1548675,81140.0,81139.0,0.48462208]
[1744354422729,0.1548675,81140.0,81139.0,0.54922208]
[1744354430246,0.1548675,81140.0,81139.0,0.39279298]
[1744354432145,0.1548675,81140.0,81139.0,0.36129298]
[1744354432444,0.1548675,81140.0,81139.0,0.00049298]
[1744354437553,0.1866675,81140.0,81139.0,0.00049298]
[1744354440463,0.1548675,81140.0,81139.0,0.12382208]
[1744354440760,4e-05,81140.0,81139.0,0.48462208]
[1744354441158,0.123324,81143.0,81142.0,0.123323]
[1744354441667,0.123324,81143.0,81142.0,0.186923]
[1744354445461,0.154824,81143.0,81142.0,0.186923]
[1744354446065,0.0315,81143.0,81142.0,0.186923]
[1744354446256,0.12337671,81144.0,81143.0,0.123323]
[1744354446454,0.15487671,81144.0,81143.0,0.184823]
[1744354447761,0.15487551,81144.0,81143.0,0.184823]
[1744354448957,0.15487551,81144.0,81143.0,0.153623]
[1744354449159,0.15487551,81144.0,81143.0,0.123323]
[1744354456069,0.03155401,81144.0,81143.0,0.155923]
[1744354456257,5.401e-05,81144.0,81143.0,0.155923]
[1744354456462,5.401e-05,81144.0,81143.0,0.516723]
[1744354456662,0.18485019,81148.0,81147.0,0.1233169]
[1744354457468,0.18485019,81148.0,81147.0,0.1869169]
[1744354457672,0.12336671,81150.0,81149.0,0.1233139]
[1744354458074,0.15396671,81150.0,81149.0,0.1233139]
[1744354458568,0.18556671,81150.0,81149.0,0.1233139]
[1744354470486,0.15396671,81150.0,81149.0,0.1233139]
[1744354471592,0.1539127,81150.0,81149.0,0.1233139]
[1744354471784,0.1539527,81150.0,81149.0,0.1233139]
[1744354473093,0.1539127,81150.0,81149.0,0.1233139]
[1744354473790,0.1539527,81150.0,81149.0,0.1233139]
[1744354475190,0.1233154,81148.0,81147.0,0.0929578]
[1744354475399,0.1233154,81148.0,81147.0,0.0313]
[1744354475796,0.1546154,81148.0,81147.0,0.0313]
[1744354476293,0.1546154,81148.0,81146.0,0.0306]
[1744354476294,0.0616599,81146.0,81143.0,0.4841209]
[1744354476496,0.1233215,81144.0,81143.0,0.4841209]
[1744354476698,0.1233215,81144.0,81143.0,0.5148209]
[1744354476899,0.1546215,81144.0,81143.0,0.5464209]
[1744354478099,0.1546215,81144.0,81143.0,0.4841209]
[1744354478301,0.1874215,81144.0,81143.0,0.4841209]
[1744354480692,0.1546215,81144.0,81143.0,0.4841209]
[1744354480892,0.1546215,81144.0,81143.0,0.5170209]
[1744354481598,0.1546215,81144.0,81143.0,0.5472209]
[1744354482102,0.1546215,81144.0,81143.0,0.4841209]
[1744354482402,0.1546215,81144.0,81143.0,0.3608]
[1744354482605,0.1546215,81144.0,81143.0,0.484123]
[1744354483304,0.1546215,81144.0,81143.0,0.3608]
[1744354483901,0.1233275,81140.0,81139.0,0.00049298]
[1744354484807,0.1872275,81140.0,81139.0,0.00049298]
[1744354487003,0.1233397,81132.0,81131.0,0.29444292]
[1744354487306,0.4841397,81132.0,81131.0,0.29444292]
[1744354488106,0.1540397,81132.0,81131.0,0.29444292]
[1744354488305,0.1864397,81132.0,81131.0,0.29444292]
[1744354490105,0.1233503,81125.0,81122.0,0.00923227]
[1744354491009,0.1562503,81125.0,81124.0,0.4841519]
[1744354491503,0.1562503,81125.0,81124.0,0.5154519]
[1744354492511,0.1562503,81125.0,81124.0,0.3921]
[1744354493214,0.1562503,81125.0,81124.0,0.5154519]
[1744354494013,0.1562503,81125.0,81124.0,0.3921]
[1744354494710,0.1562503,81125.0,81124.0,0.3608]
[1744354495412,0.1890503,81125.0,81124.0,0.3608]
[1744354496305,0.1233549,81122.0,81121.0,0.1233555]
[1744354497099,0.1554549,81122.0,81121.0,0.1542555]
[1744354499411,0.1233564,81121.0,81120.0,0.0304]
[1744354499708,0.1555564,81121.0,81120.0,0.1537579]
[1744354499909,0.1233564,81121.0,81120.0,0.1537579]
[1744354500304,0.1554549,81122.0,81121.0,0.1233564]
[1744354500511,0.1554549,81122.0,81121.0,0.1856564]
[1744354503220,0.1554549,81122.0,81121.0,0.19488282]
[1744354504112,0.1554549,81122.0,81121.0,0.55568282]
[1744354505414,0.1233549,81122.0,81121.0,0.55568282]
[1744354505816,0.1233949,81122.0,81121.0,0.55568282]
[1744354506119,0.0616732,81128.0,81127.0,0.2466884]
[1744354506319,0.06172721,81128.0,81127.0,0.2466884]
[1744354506613,0.06172721,81128.0,81127.0,0.2634942]
[1744354507005,0.23395193,81131.0,81130.0,0.1233427]
[1744354507205,0.23395193,81131.0,81130.0,0.5009485]
[1744354508221,0.1233424,81131.0,81130.0,0.5337485]
[1744354509323,0.1233424,81131.0,81130.0,0.53359145]
[1744354510319,0.0331,81132.0,81131.0,0.1233412]
[1744354510620,0.1233397,81132.0,81131.0,0.20408995]
[1744354512117,5.401e-05,81133.0,81132.0,0.1233397]
[1744354512419,5.401e-05,81133.0,81132.0,0.13998845]
[1744354512615,0.11061883,81134.0,81133.0,0.1233382]
[1744354512815,0.11061883,81134.0,81133.0,0.13998695]
[1744354513017,0.11061883,81134.0,81133.0,0.20408695]
[1744354513221,0.11065883,81134.0,81133.0,0.20408695]
[1744354514520,0.11065883,81134.0,81133.0,0.20432963]
[1744354515117,0.23399553,81134.0,81133.0,0.20432963]
[1744354516313,0.26709553,81134.0,81133.0,0.20432963]
[1744354517012,0.1564767,81134.0,81133.0,0.17242963]
[1744354517216,0.1564767,81134.0,81133.0,0.01689143]
[1744354517518,0.2467038,81126.0,81125.0,0.0616748]
[1744354517719,0.2467038,81126.0,81125.0,0.07817041]
[1744354518211,0.2467038,81126.0,81125.0,0.07817095]
[1744354518621,0.2467038,81126.0,81123.0,0.0333]
[1744354518622,0.1233534,81123.0,81122.0,0.29444292]
[1744354519908,0.13504917,81123.0,81122.0,0.29444292]
[1744354520716,0.123364,81116.0,81115.0,0.00049312]
[1744354521530,0.187064,81116.0,81115.0,0.00049312]
[1744354530032,0.1233792,81106.0,81103.0,0.0306]
[1744354530622,0.1233792,81106.0,81104.0,0.1233814]
[1744354530935,0.1233792,81106.0,81103.0,0.0616917]
[1744354531525,0.1233792,81106.0,81104.0,0.1233818]
[1744354532830,0.1233792,81106.0,81105.0,0.4841808]
[1744354533136,0.1233792,81106.0,81105.0,0.3608]
[1744354536028,0.0616898,81106.0,81105.0,0.3608]
[1744354537635,0.1233823,81104.0,81103.0,0.1565835]
[1744354538148,0.1233823,81104.0,81103.0,0.1882835]
[1744354538346,0.1885823,81104.0,81103.0,0.0332]
[1744354539035,0.1885823,81104.0,81103.0,0.394]
[1744354539942,0.1885823,81104.0,81103.0,0.5173838]
[1744354540242,0.1885823,81104.0,81103.0,0.394]
[1744354541646,0.1885823,81104.0,81103.0,0.3608]
[1744354542543,0.1885823,81104.0,81103.0,0.3939]
[1744354543245,0.1885823,81104.0,81103.0,0.5172838]
[1744354543437,0.1885823,81104.0,81103.0,0.5474838]
[1744354544844,0.1565823,81104.0,81103.0,0.5474838]
[1744354546043,0.1566223,81104.0,81103.0,0.4241]
[1744354546440,0.1566223,81104.0,81103.0,0.3608]
[1744354546656,0.1233868,81101.0,81100.0,0.1]
[1744354551147,0.1233868,81101.0,81100.0,0.1649]
[1744354553852,0.1233868,81101.0,81100.0,0.2882884]
[1744354554751,0.23394024,81101.0,81100.0,0.2882884]
[1744354559749,0.23394024,81101.0,81100.0,0.30474951]
[1744354560456,0.23394024,81101.0,81100.0,0.66554951]
[1744354560660,0.23394024,81101.0,81100.0,0.6490884]
[1744354560955,0.23394024,81101.0,81100.0,0.2882884]
[1744354561156,0.23394024,81101.0,81100.0,0.6490884]
[1744354561859,0.23398024,81101.0,81100.0,0.6490884]
[1744354562060,0.23394024,81101.0,81100.0,0.6490884]
[1744354562856,0.1234268,81101.0,81100.0,0.6490884]
[1744354564656,0.1234268,81101.0,81100.0,0.66557943]
[1744354565861,4e-05,81101.0,81100.0,0.91557943]
[1744354566050,0.14747938,81106.0,81105.0,0.1233808]
[1744354566250,0.14747938,81106.0,81105.0,0.13987183]
[1744354566754,0.14751938,81106.0,81105.0,0.13987183]
[1744354566949,0.14751938,81106.0,81105.0,0.17297183]
[1744354567149,0.14751938,81106.0,81105.0,0.20457183]
[1744354570560,0.27089858,81106.0,81105.0,0.20457183]
[1744354570857,0.1234192,81106.0,81105.0,0.20457183]
[1744354574658,0.1541192,81106.0,81105.0,0.20457183]
[1744354575260,0.1541192,81106.0,81105.0,0.17298924]
[1744354575666,0.1541192,81106.0,81105.0,0.13988924]
[1744354575862,0.1860192,81106.0,81105.0,0.13988924]
[1744354577965,0.1860192,81106.0,81105.0,0.01650844]
[1744354578167,0.1860192,81106.0,81103.0,0.0616917]
[1744354578168,0.2467706,81104.0,81103.0,0.0616917]
[1744354578367,0.2467706,81104.0,81103.0,0.01647689]
[1744354578663,0.1233868,81102.0,81101.0,0.1233857]
[1744354579060,0.1847868,81102.0,81101.0,0.1233857]
[1744354579865,0.1847868,81102.0,81101.0,0.4841857]
[1744354582468,0.03,81102.0,81101.0,0.4841857]
[1744354582667,0.1533853,81102.0,81101.0,0.5496857]
[1744354582867,0.1534253,81102.0,81101.0,0.5496857]
[1744354585367,0.03004,81102.0,81101.0,0.5496857]
[1744354585571,0.03,81102.0,81101.0,0.5496857]
[1744354585762,0.03004,81102.0,81101.0,0.5662148]
[1744354586667,4e-05,81102.0,81101.0,0.5662148]
[1744354587070,0.0317,81103.0,81102.0,0.1233853]
[1744354587271,0.0317,81103.0,81102.0,0.1399144]
[1744354587470,0.0317,81103.0,81102.0,0.2048144]
[1744354587666,0.1550838,81103.0,81102.0,0.2048144]
[1744354587873,0.1550838,81103.0,81102.0,0.20502154]
[1744354589771,0.1550838,81103.0,81102.0,0.17302154]
[1744354589975,0.1550838,81103.0,81102.0,0.20482154]
[1744354590270,0.1550838,81103.0,81102.0,0.17302154]
[1744354592273,0.1550838,81103.0,81102.0,0.14012154]
[1744354594064,0.1550838,81103.0,81102.0,0.14024634]
[1744354596369,0.1550838,81103.0,81102.0,0.17274634]
[1744354597066,0.1550838,81103.0,81102.0,0.53354634]
[1744354603087,0.1550838,81103.0,81102.0,0.53331382]
[1744354603981,0.26578686,81103.0,81102.0,0.53331382]
[1744354605890,0.26578686,81103.0,81102.0,0.1558853]
[1744354606097,0.26578686,81103.0,81102.0,0.5166853]
[1744354606403,0.26578686,81103.0,81102.0,0.1558853]
[1744354606705,0.26578686,81103.0,81102.0,0.5166853]
[1744354607698,0.1550838,81103.0,81102.0,0.5166853]
[1744354608002,0.1550838,81103.0,81102.0,0.53369412]
[1744354610406,0.0317,81103.0,81102.0,0.53369412]
[1744354610806,0.03174,81103.0,81102.0,0.53369412]
[1744354611107,0.03174,81103.0,81102.0,0.53366002]
[1744354611402,0.14753339,81107.0,81102.0,0.41027472]
[1744354611608,0.14753339,81107.0,81106.0,0.4841792]
[1744354611809,0.14753339,81107.0,81106.0,0.50115392]
[1744354612107,0.14747938,81107.0,81106.0,0.50115392]
[1744354612294,0.14751938,81107.0,81106.0,0.50115392]
[1744354612498,4e-05,81107.0,81106.0,0.56365392]
[1744354618311,4e-05,81107.0,81106.0,0.92445392]
[1744354619206,4e-05,81107.0,81106.0,0.9243992]
[1744354622710,4e-05,81107.0,81106.0,0.92445679]
[1744354623712,4e-05,81107.0,81106.0,1.14619857]
[1744354626411,4e-05,81107.0,81106.0,1.14620535]
[1744354628318,4e-05,81107.0,81106.0,0.42460535]
[1744354628615,4e-05,81107.0,81106.0,1.14620535]
[1744354633620,4e-05,81107.0,81106.0,1.14615085]
[1744354636322,4e-05,81107.0,81106.0,0.92440907]
[1744354637018,0.03204,81107.0,81106.0,0.92440907]
[1744354639623,0.03204,81107.0,81106.0,0.89330907]
[1744354640828,0.03204,81107.0,81106.0,0.89346223]
[1744354642328,0.032,81107.0,81106.0,0.89346223]
[1744354643428,0.032,81107.0,81106.0,0.17186223]
[1744354643729,0.032,81107.0,81106.0,0.89346223]
[1744354648029,0.032,81107.0,81106.0,0.89359869]
[1744354648423,0.032,81107.0,81106.0,0.86219869]
[1744354649534,0.11075069,81112.0,81111.0,0.1233716]
[1744354649739,0.11075069,81112.0,81111.0,0.14059109]
[1744354650333,0.11079069,81112.0,81111.0,0.14059109]
[1744354650532,0.11079069,81112.0,81111.0,0.20329109]
[1744354653035,0.11075069,81112.0,81111.0,0.20329109]
[1744354653237,0.11079069,81112.0,81111.0,0.20329109]
[1744354653438,0.11079069,81112.0,81111.0,0.28591071]
[1744354654446,0.11079069,81112.0,81111.0,0.20351071]
[1744354654638,0.11079069,81112.0,81111.0,0.14081071]
[1744354655332,0.17229069,81112.0,81111.0,0.14081071]
[1744354656640,0.06154,81112.0,81111.0,0.50714216]
[1744354656936,0.06154,81112.0,81111.0,0.5065713]
[1744354659135,0.06154,81112.0,81111.0,0.48970305]
[1744354660033,0.06154,81112.0,81111.0,0.50624865]
[1744354660638,0.06154,81112.0,81111.0,0.1399172]
[1744354661145,0.1849101,81112.0,81111.0,0.1399172]
[1744354662641,0.1849101,81112.0,81111.0,0.0165456]
[1744354662942,0.1233747,81109.0,81108.0,0.29565913]
[1744354663244,0.1233747,81109.0,81108.0,0.43574057]
[1744354663636,0.1233747,81109.0,81108.0,0.43587529]
[1744354663834,0.1847747,81109.0,81108.0,0.43587529]
[1744354664043,0.1847747,81109.0,81108.0,0.43594139]
[1744354664243,0.1847747,81109.0,81108.0,0.01690606]
[1744354665543,0.1847747,81109.0,81105.0,0.0616899]
[1744354665738,0.1233792,81107.0,81106.0,0.07859774]
[1744354666445,0.1856792,81107.0,81106.0,0.07859774]
[1744354667645,0.1856792,81107.0,81106.0,0.07866981]
[1744354667846,0.2473687,81107.0,81106.0,0.1233792]
[1744354668348,0.1233868,81101.0,81100.0,0.2233877]
[1744354668642,0.1233868,81101.0,81100.0,0.11696838]
[1744354668848,0.1233868,81101.0,81100.0,0.24035678]
[1744354672247,0.1233868,81101.0,81100.0,0.2233884]
[1744354679855,0.1233868,81101.0,81100.0,0.2533884]
[1744354680654,0.1234268,81101.0,81100.0,0.2533884]
[1744354683359,0.1234268,81101.0,81100.0,0.27008218]
[1744354685358,4e-05,81101.0,81100.0,0.27008218]
[1744354685655,0.1234268,81101.0,81100.0,0.27008218]
[1744354686252,0.1556845,81103.0,81100.0,0.14669378]
[1744354686458,0.0616914,81104.0,81103.0,0.1233838]
[1744354686657,0.0616914,81104.0,81103.0,0.14007758]
[1744354687349,0.0616914,81104.0,81103.0,0.20459593]
[1744354687551,0.0617314,81104.0,81103.0,0.20459593]
[1744354690153,4e-05,81104.0,81103.0,0.20459593]
[1744354690555,0.1233817,81105.0,81104.0,0.1233823]
[1744354690755,0.1233817,81105.0,81104.0,0.20519443]
[1744354690956,0.1233817,81105.0,81104.0,0.20533065]
[1744354692760,0.1233817,81105.0,81104.0,0.56613065]
[1744354696065,0.0930892,81107.0,81106.0,0.1233792]
[1744354696261,0.0930892,81107.0,81106.0,0.14012755]
[1744354696456,0.0314,81107.0,81106.0,0.14012755]
[1744354697766,0.0314,81107.0,81106.0,0.13990029]
[1744354697968,0.1547777,81107.0,81106.0,0.13990029]
[1744354701970,0.1868777,81107.0,81106.0,0.50070029]
[1744354704471,0.1868777,81107.0,81106.0,0.13990029]
[1744354704670,0.1868777,81107.0,81106.0,0.50070029]
[1744354705464,0.1868777,81107.0,81106.0,0.50085292]
[1744354719978,0.1868777,81107.0,81106.0,0.50134518]
[1744354721578,0.1868777,81107.0,81106.0,0.50154411]
[1744354722181,0.1868777,81107.0,81106.0,0.14074411]
[1744354722384,0.1868777,81107.0,81106.0,0.50154411]
[1744354724881,0.33435708,81107.0,81106.0,0.50154411]
[1744354725277,0.33435708,81107.0,81106.0,0.50089125]
[1744354725884,0.33435708,81107.0,81106.0,0.14009125]
[1744354726084,0.33435708,81107.0,81106.0,0.50089125]
[1744354726877,0.33435708,81107.0,81106.0,0.4841792]
[1744354727083,0.33435708,81107.0,81106.0,0.50096876]
[1744354727284,0.17887938,81107.0,81106.0,0.50096876]
[1744354727983,0.30225708,81107.0,81106.0,0.50096876]
[1744354728682,0.30225708,81107.0,81106.0,0.50126698]
[1744354729684,0.1547777,81107.0,81106.0,0.50126698]
[1744354730484,0.1547777,81107.0,81106.0,0.50127982]
[1744354735885,0.1547777,81107.0,81106.0,0.14047982]
[1744354736086,0.1547777,81107.0,81106.0,0.50127982]
[1744354736286,0.30256878,81107.0,81106.0,0.50127982]
[1744354738576,0.33266878,81107.0,81106.0,0.50127982]
[1744354739582,0.33266878,81107.0,81106.0,0.4841792]
[1744354742193,0.33266878,81107.0,81106.0,0.1233792]
[1744354743395,0.33266878,81107.0,81106.0,0.14008331]
[1744354743692,0.17919108,81107.0,81106.0,0.14008331]
[1744354743891,0.18434922,81113.0,81112.0,0.1233701]
[1744354744095,7.291e-05,81121.0,81117.0,0.1233625]
[1744354744288,7.291e-05,81121.0,81117.0,0.14006661]
[1744354744494,0.22065213,81121.0,81120.0,0.1233579]
[1744354744692,0.22065213,81121.0,81120.0,0.14006201]
[1744354745197,0.22065213,81121.0,81120.0,0.20316201]
[1744354745596,0.22057922,81121.0,81120.0,0.20316201]
[1744354745797,0.22061922,81121.0,81120.0,0.20316201]
[1744354746686,0.22061922,81121.0,81120.0,0.20304161]
[1744354747996,4e-05,81121.0,81120.0,0.20304161]
[1744354750199,4e-05,81121.0,81120.0,0.20305241]
[1744354750401,4e-05,81121.0,81120.0,0.1864579]
[1744354750903,4e-05,81121.0,81120.0,0.1233579]
[1744354751699,0.06154,81121.0,81120.0,0.1233579]
[1744354754803,0.06154,81121.0,81120.0,0.4841579]
[1744354762512,0.06154,81121.0,81120.0,0.50069601]
[1744354763110,0.06154,81121.0,81120.0,0.53369601]
[1744354765515,0.03054,81121.0,81120.0,0.53369601]
[1744354767216,0.03054,81121.0,81120.0,0.17289601]
[1744354767411,0.03054,81121.0,81120.0,0.53369601]
[1744354768010,0.03054,81121.0,81120.0,0.50069601]
[1744354768214,0.03054,81121.0,81120.0,0.4841579]
[1744354768417,0.03054,81121.0,81120.0,0.50064159]
[1744354768713,0.03054,81121.0,81120.0,0.4841579]
[1744354771311,0.03054,81121.0,81120.0,0.5159579]
[1744354771508,0.03054,81121.0,81120.0,0.5324933]
[1744354773218,0.14137049,81121.0,81120.0,0.5324933]
[1744354773911,0.14137049,81121.0,81120.0,0.1716933]
[1744354774114,0.14137049,81121.0,81120.0,0.5324933]
[1744354775223,0.14137049,81121.0,81120.0,0.1716933]
[1744354775421,0.14137049,81121.0,81120.0,0.5324933]
[1744354777419,0.0305,81121.0,81120.0,0.53264754]
[1744354784530,0.0305,81121.0,81120.0,0.5159579]
[1744354784728,0.00018485,81124.0,81123.0,0.1233534]
[1744354785232,0.00022485,81124.0,81123.0,0.1233534]
[1744354785623,0.00022485,81124.0,81123.0,0.20452252]
[1744354793133,0.00018485,81124.0,81123.0,0.20452252]
[1744354793333,0.00022485,81124.0,81123.0,0.20452252]
[1744354794538,0.00022485,81124.0,81123.0,0.56532252]
[1744354795427,0.00022485,81124.0,81123.0,0.50082252]
[1744354796129,0.06512485,81124.0,81123.0,0.50082252]
[1744354797829,0.03322485,81124.0,81123.0,0.50082252]
[1744354798034,0.03322485,81124.0,81123.0,0.53412252]
[1744354800435,5.401e-05,81128.0,81127.0,0.1233473]
[1744354800636,0.0313,81128.0,81127.0,0.14001642]
[1744354800832,0.1867458,81128.0,81127.0,0.01666912]
[1744354801025,0.1233549,81122.0,81121.0,0.22179855]
[1744354801232,0.1233595,81119.0,81107.0,0.43158294]
[1744354801632,0.3733595,81119.0,81111.0,0.1233716]
[1744354801833,0.4367595,81119.0,81110.0,0.12355785]
[1744354802136,0.123361,81118.0,81117.0,0.29565913]
[1744354802336,0.205481,81118.0,81117.0,0.29565913]
[1744354802534,0.268881,81118.0,81117.0,0.29565913]
[1744354802731,0.53099673,81118.0,81117.0,0.01802066]
[1744354802932,0.1233686,81113.0,81112.0,0.36633145]
[1744354803133,0.4841686,81113.0,81112.0,0.36633145]
[1744354803330,0.7341686,81113.0,81112.0,0.36633145]
[1744354803534,0.7342086,81113.0,81112.0,0.36633145]
[1744354803831,0.8004086,81113.0,81112.0,0.36633145]
[1744354804033,0.8825286,81113.0,81112.0,0.36633145]
[1744354804539,0.0662,81113.0,81112.0,0.48970155]
[1744354804752,0.06624,81113.0,81112.0,0.48970155]
[1744354805131,0.0662,81113.0,81112.0,0.48970155]
[1744354805438,0.06624,81113.0,81112.0,0.48970155]
[1744354805939,0.03334,81113.0,81112.0,0.55070155]
[1744354806140,0.3608,81120.0,81119.0,0.1233595]
[1744354806349,5.401e-05,81122.0,81121.0,0.1233564]
[1744354806531,0.19302469,81129.0,81126.0,0.1233488]
[1744354806532,0.11090469,81129.0,81126.0,0.1233488]
[1744354806839,5.401e-05,81133.0,81126.0,0.4841488]
[1744354807039,0.0322,81133.0,81126.0,0.1233488]
[1744354807346,0.00022485,81127.0,81126.0,0.1233488]
[1744354807941,0.00022485,81127.0,81126.0,0.1534488]
[1744354808137,0.00018485,81127.0,81126.0,0.20209744]
[1744354808337,0.00022485,81127.0,81126.0,0.1855488]
[1744354808541,0.00022485,81127.0,81126.0,0.20209735]
[1744354809145,0.00022485,81127.0,81126.0,0.1855488]
[1744354809648,0.2575602,81154.0,81126.0,0.41082499]
[1744354809948,0.2575602,81154.0,81153.0,0.1233078]
[1744354810151,0.2575602,81154.0,81153.0,0.1123078]
[1744354810634,4e-05,81154.0,81153.0,0.1123078]
[1744354810834,4e-05,81154.0,81152.0,0.0302]
[1744354810835,0.62465282,81159.0,81158.0,0.1233002]
[1744354811140,0.62465282,81159.0,81158.0,0.4841002]
[1744354811648,0.62465282,81159.0,81158.0,0.50075466]
[1744354812547,0.62465282,81159.0,81158.0,0.4841002]
[1744354812938,0.62469282,81159.0,81158.0,0.4841002]
[1744354813636,0.62465282,81159.0,81158.0,0.4841002]
[1744354813838,0.62469282,81159.0,81158.0,0.4841002]
[1744354814645,0.62465282,81159.0,81158.0,0.4841002]
[1744354814848,0.62469282,81159.0,81158.0,0.4841002]
[1744354816249,4e-05,81159.0,81158.0,0.5163002]
[1744354818645,4e-05,81159.0,81158.0,0.4841002]
[1744354818948,0.1233387,81159.0,81158.0,0.3608]
[1744354819139,4e-05,81159.0,81158.0,0.4841002]
[1744354824157,0.00058485,81162.0,81161.0,0.1232956]
[1744354824858,0.00062485,81162.0,81161.0,0.1232956]
[1744354826160,0.00058485,81162.0,81161.0,0.1232956]
[1744354826455,0.00062485,81162.0,81161.0,0.1232956]
[1744354827652,0.00058485,81162.0,81161.0,0.1232956]
[1744354827856,0.00062485,81162.0,81161.0,0.1232956]
[1744354829554,5.401e-05,81171.0,81170.0,0.123282]
[1744354829745,5.401e-05,81171.0,81170.0,0.484082]
[1744354830258,0.06039423,81182.0,81181.0,0.1232652]
[1744354830855,0.06043423,81182.0,81181.0,0.1851652]
[1744354831061,0.06039423,81182.0,81181.0,0.1851652]
[1744354831266,0.06043423,81182.0,81181.0,0.1851652]
[1744354832159,4e-05,81182.0,81181.0,0.1851652]
[1744354833158,0.0317,81186.0,81185.0,0.1232592]
[1744354833757,0.0317,81186.0,81183.0,0.1232621]
[1744354834060,0.0314,81185.0,81184.0,0.1232607]
[1744354835263,0.0317,81186.0,81185.0,0.1232592]
[1744354835765,0.0317,81186.0,81185.0,0.1408614]
[1744354835968,0.03174,81186.0,81185.0,0.1408614]
[1744354836156,0.00044,81186.0,81185.0,0.2035614]
[1744354836558,0.0004,81186.0,81185.0,0.2035614]
[1744354836756,0.00044,81186.0,81185.0,0.2035614]
[1744354843964,0.02852485,81191.0,81190.0,0.1232516]
[1744354844163,0.02852485,81191.0,81190.0,0.5016538]
[1744354844366,0.05872485,81191.0,81190.0,0.5016538]
[1744354844568,0.05872485,81191.0,81190.0,0.50169391]
[1744354845358,0.05872485,81191.0,81190.0,0.50163536]
[1744354845858,0.05872485,81191.0,81190.0,0.4840516]
[1744354848056,0.05872485,81191.0,81190.0,0.5160516]
[1744354849868,0.05872485,81191.0,81190.0,0.4840516]
[1744354850556,0.05872485,81191.0,81190.0,0.50131535]
[1744354850969,0.05872485,81191.0,81190.0,0.4840516]
[1744354851359,0.05872485,81191.0,81190.0,0.50099797]
[1744354852967,0.05872485,81191.0,81190.0,0.52529797]
[1744354855472,0.05872485,81191.0,81190.0,0.49499797]
[1744354858573,0.05872485,81191.0,81190.0,0.52679797]
[1744354859577,0.05872485,81191.0,81190.0,0.49499797]
[1744354860478,0.05872485,81191.0,81190.0,0.50425603]
[1744354860791,0.05872485,81191.0,81190.0,0.50436138]
[1744354862372,0.05872485,81191.0,81190.0,0.50439821]
[1744354863581,0.05872485,81191.0,81190.0,0.53579821]
[1744354866677,0.05872485,81191.0,81190.0,0.37788855]
[1744354866880,0.123263,81183.0,81180.0,0.3608]
[1744354867076,0.2194637,81182.0,81181.0,0.1232652]
[1744354867279,0.2194637,81182.0,81179.0,0.35696936]
[1744354867280,0.1232668,81180.0,81179.0,0.29533586]
[1744354868177,0.13547023,81180.0,81179.0,0.29533586]
[1744354870082,0.1232668,81180.0,81179.0,0.29533586]
[1744354870486,0.1351581,81180.0,81179.0,0.29533586]
[1744354870986,0.1351581,81180.0,81173.0,0.00018485]
[1744354870987,0.1232759,81174.0,81173.0,0.12346105]
[1744354871174,0.1232759,81174.0,81173.0,0.00018485]
[1744354872283,0.1550759,81174.0,81173.0,0.00018485]
[1744354872688,0.1550759,81174.0,81173.0,0.12346225]
[1744354873180,0.06002972,81180.0,81179.0,0.1232683]
[1744354873379,0.09262972,81180.0,81179.0,0.1232683]
[1744354873581,0.0925313,81180.0,81179.0,0.1232683]
[1744354874083,0.0599313,81180.0,81179.0,0.1538683]
[1744354874390,0.0599713,81180.0,81179.0,0.1538683]
[1744354874587,0.0599313,81180.0,81179.0,0.1538683]
[1744354874981,0.14755174,81180.0,81179.0,0.1538683]
[1744354876491,0.27081854,81180.0,81179.0,0.1232683]
[1744354876693,0.14755174,81180.0,81179.0,0.1232683]
[1744354877080,0.17905174,81180.0,81179.0,0.1232683]
[1744354877989,0.03154,81180.0,81179.0,0.1232683]
[1744354878182,0.06184,81180.0,81179.0,0.1232683]
[1744354878383,0.1851068,81180.0,81179.0,0.1232683]
[1744354881192,0.1851068,81180.0,81179.0,0.4840683]
[1744354881688,0.1851068,81180.0,81179.0,0.3608]
[1744354883481,0.1851068,81180.0,81179.0,0.4840683]
[1744354883882,0.06184,81180.0,81179.0,0.4840683]
[1744354884081,0.1851068,81180.0,81179.0,0.4840683]
[1744354884488,0.1851068,81180.0,81179.0,0.5158683]
[1744354885792,0.1851068,81180.0,81179.0,0.3608]
[1744354886992,0.1232759,81174.0,81173.0,0.00018485]
[1744354887287,0.1232759,81174.0,81173.0,0.12346225]
[1744354887684,0.1232759,81174.0,81173.0,0.00018485]
[1744354887889,0.1868759,81174.0,81173.0,0.00018485]
[1744354888492,0.1868759,81174.0,81173.0,0.12346225]
[1744354889091,0.33438764,81174.0,81173.0,0.12346225]
[1744354891191,0.33438764,81174.0,81173.0,0.15536225]
[1744354891684,0.21111174,81174.0,81173.0,0.15536225]
[1744354891894,0.14751174,81174.0,81173.0,0.15536225]
[1744354892294,0.14751174,81175.0,81174.0,0.1232759]
[1744354892493,0.14751174,81175.0,81174.0,0.1553759]
[1744354896800,5.401e-05,81178.0,81177.0,0.1232713]
[1744354896992,0.03155401,81178.0,81177.0,0.1232713]
[1744354897592,0.03155401,81178.0,81177.0,0.1541713]
[1744354897794,5.401e-05,81178.0,81177.0,0.1541713]
[1744354898099,0.23015174,81180.0,81179.0,0.1232683]
[1744354900792,0.14751174,81180.0,81179.0,0.1232683]
[1744354901098,0.00023886,81182.0,81181.0,0.1232652]
[1744354901099,0.00018485,81182.0,81181.0,0.1232652]
[1744354901289,0.00018485,81182.0,81181.0,0.13992859]